[Event "*** Titled Tuesday Blitz"]
[Site "Chess.com"]
[Date "2021.02.02"]
[Round "4"]
[White "Savagelittlemole"]
[Black "Cocaino74"]
[Result "1-0"]
[WhiteElo "2456"]
[BlackElo "2277"]
[TimeControl "180+1"]
[EndTime "10:41:13 PST"]
[Termination "Savagelittlemole won on time"]

1. e4 {[%clk 0:03:00.9]} 1... c5 {[%clk 0:02:59.2]} 2. Ne2 {[%clk 0:03:00.6]}
2... g6 {[%clk 0:02:55.7]} 3. g3 {[%clk 0:03:00.7]} 3... Bg7 {[%clk 0:02:56.1]}
4. Bg2 {[%clk 0:03:01.6]} 4... e6 {[%clk 0:02:54.9]} 5. O-O {[%clk 0:03:02.5]}
5... d5 {[%clk 0:02:54.9]} 6. exd5 {[%clk 0:03:01.7]} 6... exd5 {[%clk
0:02:55.8]} 7. d4 {[%clk 0:03:02.2]} 7... Ne7 {[%clk 0:02:51.8]} 8. dxc5 {[%clk
0:03:01.3]} 8... Na6 {[%clk 0:02:49.9]} 9. Nbc3 {[%clk 0:02:56]} 9... Be6 {[%clk
0:02:44.1]} 10. Be3 {[%clk 0:02:54.9]} 10... Rc8 {[%clk 0:02:41.7]} 11. Nd4
{[%clk 0:02:50.3]} 11... O-O {[%clk 0:02:34.1]} 12. Na4 {[%clk 0:02:35.3]} 12...
Bd7 {[%clk 0:02:27.5]} 13. c3 {[%clk 0:02:23.4]} 13... Bxa4 {[%clk 0:02:14.2]}
14. Qxa4 {[%clk 0:02:24.3]} 14... Nxc5 {[%clk 0:02:13.8]} 15. Qxa7 {[%clk
0:02:21.9]} 15... b6 {[%clk 0:01:42.6]} 16. Qa3 {[%clk 0:01:50.1]} 16... Qd7
{[%clk 0:00:12.2]} 17. b4 {[%clk 0:01:41.6]} 17... Ne6 {[%clk 0:00:09.9]} 18.
Rfd1 {[%clk 0:01:33.4]} 18... Nxd4 {[%clk 0:00:04.4]} 19. Bxd4 {[%clk
0:01:32.6]} 19... Bxd4 {[%clk 0:00:02.6]} 20. Rxd4 {[%clk 0:01:31.9]} 20... Rfd8
{[%clk 0:00:02]} 21. Rad1 {[%clk 0:01:29]} 21... Qe6 {[%clk 0:00:01.6]} 22. Qb3
{[%clk 0:01:26.2]} 22... Nf5 {[%clk 0:00:01.5]} 23. Rxd5 {[%clk 0:01:24.2]}
23... Rxd5 {[%clk 0:00:01.1]} 24. Bxd5 {[%clk 0:01:20]} 24... Qf6 {[%clk
0:00:01.6]} 25. c4 {[%clk 0:01:14.7]} 25... b5 {[%clk 0:00:02.1]} 26. cxb5
{[%clk 0:01:10.2]} 26... Nd4 {[%clk 0:00:02.7]} 27. Qe3 {[%clk 0:01:02.2]} 27...
Nc2 {[%clk 0:00:02.5]} 28. Qf3 {[%clk 0:00:56]} 28... Qxf3 {[%clk 0:00:02]} 29.
Bxf3 {[%clk 0:00:56.9]} 29... Nxb4 {[%clk 0:00:02.7]} 30. b6 {[%clk 0:00:56.8]}
30... Nxa2 {[%clk 0:00:02.4]} 31. b7 {[%clk 0:00:56.9]} 31... Rb8 {[%clk
0:00:02.8]} 32. Ra1 {[%clk 0:00:55.9]} 32... Nb4 {[%clk 0:00:02.5]} 33. Ra8
{[%clk 0:00:55.6]} 33... Na6 {[%clk 0:00:02.9]} 34. Rxa6 {[%clk 0:00:55.1]} 1-0

[Event "*** Titled Tuesday Blitz"]
[Site "Chess.com"]
[Date "2021.02.02"]
[Round "4"]
[White "Genghis_K"]
[Black "Bulldog167"]
[Result "1-0"]
[WhiteElo "2935"]
[BlackElo "2805"]
[TimeControl "180+1"]
[EndTime "10:41:18 PST"]
[Termination "Genghis_K won by checkmate"]

1. e4 {[%clk 0:03:00.5]} 1... e6 {[%clk 0:02:59.7]} 2. d4 {[%clk 0:02:59.1]}
2... d5 {[%clk 0:03:00.3]} 3. Nd2 {[%clk 0:02:59.8]} 3... c5 {[%clk 0:03:00]} 4.
Ngf3 {[%clk 0:02:57.9]} 4... cxd4 {[%clk 0:03:00.3]} 5. Nxd4 {[%clk 0:02:57.5]}
5... Nf6 {[%clk 0:03:00.5]} 6. exd5 {[%clk 0:02:52.6]} 6... Nxd5 {[%clk
0:03:01.4]} 7. N2f3 {[%clk 0:02:51.9]} 7... Bb4+ {[%clk 0:03:01.7]} 8. Bd2
{[%clk 0:02:51.8]} 8... O-O {[%clk 0:03:01.8]} 9. c4 {[%clk 0:02:36.1]} 9...
Bxd2+ {[%clk 0:03:01.1]} 10. Qxd2 {[%clk 0:02:36.4]} 10... Ne7 {[%clk
0:03:00.4]} 11. O-O-O {[%clk 0:02:31]} 11... Nbc6 {[%clk 0:02:14]} 12. Qc3
{[%clk 0:02:15.9]} 12... Qc7 {[%clk 0:02:02.4]} 13. Nb5 {[%clk 0:02:13.1]} 13...
Qf4+ {[%clk 0:02:02.5]} 14. Qd2 {[%clk 0:02:02.5]} 14... Qxd2+ {[%clk
0:01:48.7]} 15. Rxd2 {[%clk 0:02:02.6]} 15... e5 {[%clk 0:01:49.3]} 16. Bd3
{[%clk 0:01:48]} 16... Bf5 {[%clk 0:01:27.7]} 17. Re1 {[%clk 0:01:44.7]} 17...
f6 {[%clk 0:01:19.9]} 18. Nd6 {[%clk 0:01:22.6]} 18... Bxd3 {[%clk 0:01:19.8]}
19. Rxd3 {[%clk 0:01:23.5]} 19... b6 {[%clk 0:01:17.1]} 20. b3 {[%clk
0:01:17.3]} 20... Rad8 {[%clk 0:01:16.4]} 21. Red1 {[%clk 0:01:15.6]} 21... Nc8
{[%clk 0:00:56.1]} 22. Nxc8 {[%clk 0:01:09.1]} 22... Rxd3 {[%clk 0:00:56]} 23.
Rxd3 {[%clk 0:01:06.7]} 23... Rxc8 {[%clk 0:00:56.6]} 24. Rd7 {[%clk 0:01:05.7]}
24... b5 {[%clk 0:00:57.1]} 25. c5 {[%clk 0:00:55.1]} 25... a5 {[%clk
0:00:49.3]} 26. Kb2 {[%clk 0:00:51.3]} 26... e4 {[%clk 0:00:42.6]} 27. Nd2
{[%clk 0:00:44.2]} 27... f5 {[%clk 0:00:42.7]} 28. Rd5 {[%clk 0:00:42.1]} 28...
g6 {[%clk 0:00:42.5]} 29. g4 {[%clk 0:00:41.3]} 29... Ne7 {[%clk 0:00:34.8]} 30.
Rd7 {[%clk 0:00:40.9]} 30... Kf7 {[%clk 0:00:35.3]} 31. gxf5 {[%clk 0:00:38.6]}
31... gxf5 {[%clk 0:00:36.2]} 32. b4 {[%clk 0:00:33.6]} 32... axb4 {[%clk
0:00:34.4]} 33. Nb3 {[%clk 0:00:34.2]} 33... Ke6 {[%clk 0:00:34.3]} 34. Rb7
{[%clk 0:00:33.7]} 34... Nc6 {[%clk 0:00:23]} 35. Rxh7 {[%clk 0:00:32.9]} 35...
Ne5 {[%clk 0:00:23.6]} 36. Rh6+ {[%clk 0:00:32.6]} 36... Kd5 {[%clk 0:00:24]}
37. Rd6+ {[%clk 0:00:31.3]} 37... Kc4 {[%clk 0:00:24.5]} 38. Rd4# {[%clk
0:00:31.9]} 1-0

[Event "*** Titled Tuesday Blitz"]
[Site "Chess.com"]
[Date "2021.02.02"]
[Round "4"]
[White "Zmof"]
[Black "BahadirOzen"]
[Result "0-1"]
[WhiteElo "2123"]
[BlackElo "2738"]
[TimeControl "180+1"]
[EndTime "10:41:19 PST"]
[Termination "BahadirOzen won by resignation"]

1. e4 {[%clk 0:02:59.8]} 1... g6 {[%clk 0:02:59.5]} 2. Nf3 {[%clk 0:02:56.6]}
2... Bg7 {[%clk 0:02:59.5]} 3. d4 {[%clk 0:02:56.8]} 3... d6 {[%clk 0:02:59.7]}
4. c3 {[%clk 0:02:57]} 4... Nf6 {[%clk 0:02:59.3]} 5. Bd3 {[%clk 0:02:56.8]}
5... O-O {[%clk 0:02:59.7]} 6. O-O {[%clk 0:02:57.2]} 6... Nbd7 {[%clk
0:02:59.3]} 7. Re1 {[%clk 0:02:54.9]} 7... e5 {[%clk 0:02:59]} 8. h3 {[%clk
0:02:52.9]} 8... b6 {[%clk 0:02:56.1]} 9. Nbd2 {[%clk 0:02:48.5]} 9... Bb7
{[%clk 0:02:55.5]} 10. a4 {[%clk 0:02:47.5]} 10... a6 {[%clk 0:02:54.7]} 11. Nf1
{[%clk 0:02:41.4]} 11... Re8 {[%clk 0:02:48.4]} 12. dxe5 {[%clk 0:02:38.8]}
12... dxe5 {[%clk 0:02:41.2]} 13. Qe2 {[%clk 0:02:28.7]} 13... Nc5 {[%clk
0:02:40.2]} 14. Bc2 {[%clk 0:02:17.9]} 14... a5 {[%clk 0:02:36]} 15. Bg5 {[%clk
0:02:14.5]} 15... Qe7 {[%clk 0:02:26.2]} 16. Rad1 {[%clk 0:02:12]} 16... h6
{[%clk 0:01:59.7]} 17. Bxf6 {[%clk 0:02:10.2]} 17... Qxf6 {[%clk 0:01:53.5]} 18.
Ng3 {[%clk 0:01:57.9]} 18... h5 {[%clk 0:01:44.3]} 19. h4 {[%clk 0:01:53.5]}
19... Bh6 {[%clk 0:01:43.7]} 20. Qc4 {[%clk 0:01:12.8]} 20... Ba6 {[%clk
0:01:27.3]} 21. Qa2 {[%clk 0:01:12.1]} 21... Bc8 {[%clk 0:01:26.6]} 22. b4
{[%clk 0:01:00.4]} 22... axb4 {[%clk 0:01:23.4]} 23. cxb4 {[%clk 0:01:00.7]}
23... Be6 {[%clk 0:00:46.8]} 24. Qa3 {[%clk 0:01:00.7]} 24... Nxa4 {[%clk
0:00:46.7]} 25. Bxa4 {[%clk 0:00:52.8]} 25... b5 {[%clk 0:00:46.9]} 26. Qc3
{[%clk 0:00:35.5]} 26... bxa4 {[%clk 0:00:46.3]} 27. Qxc7 {[%clk 0:00:33.9]}
27... a3 {[%clk 0:00:42.1]} 28. Ra1 {[%clk 0:00:28.8]} 28... a2 {[%clk
0:00:41.3]} 29. Qxe5 {[%clk 0:00:26.9]} 29... Qxe5 {[%clk 0:00:35.3]} 30. Nxe5
{[%clk 0:00:27.1]} 30... Bd2 {[%clk 0:00:34.2]} 31. Red1 {[%clk 0:00:16.5]}
31... Bc3 {[%clk 0:00:32.5]} 32. Ne2 {[%clk 0:00:13.8]} 32... Bxe5 {[%clk
0:00:32]} 0-1

[Event "*** Titled Tuesday Blitz"]
[Site "Chess.com"]
[Date "2021.02.02"]
[Round "4"]
[White "Tartody"]
[Black "MumLookatMeNow"]
[Result "1-0"]
[WhiteElo "2641"]
[BlackElo "2479"]
[TimeControl "180+1"]
[EndTime "10:41:19 PST"]
[Termination "Tartody won by resignation"]

1. Nf3 {[%clk 0:03:00.3]} 1... Nf6 {[%clk 0:02:58.2]} 2. b3 {[%clk 0:03:00.6]}
2... d6 {[%clk 0:02:57.5]} 3. Bb2 {[%clk 0:03:00.9]} 3... e5 {[%clk 0:02:57.5]}
4. d3 {[%clk 0:03:00.9]} 4... g6 {[%clk 0:02:57.1]} 5. c4 {[%clk 0:03:01.5]}
5... Bg7 {[%clk 0:02:57.1]} 6. Nc3 {[%clk 0:03:02.1]} 6... O-O {[%clk
0:02:57.6]} 7. g3 {[%clk 0:03:01.5]} 7... h6 {[%clk 0:02:51.4]} 8. Bg2 {[%clk
0:03:00.2]} 8... Be6 {[%clk 0:02:51.7]} 9. Qd2 {[%clk 0:02:58.2]} 9... c6 {[%clk
0:02:46.6]} 10. h3 {[%clk 0:02:56.4]} 10... Qd7 {[%clk 0:02:38.3]} 11. g4 {[%clk
0:02:56.4]} 11... a5 {[%clk 0:02:26.4]} 12. Ne4 {[%clk 0:02:41]} 12... Nxe4
{[%clk 0:02:02.2]} 13. dxe4 {[%clk 0:02:41.9]} 13... Na6 {[%clk 0:02:02.3]} 14.
Nh4 {[%clk 0:02:33.7]} 14... a4 {[%clk 0:01:48.2]} 15. O-O {[%clk 0:02:13.1]}
15... Nc5 {[%clk 0:01:04.6]} 16. Qc3 {[%clk 0:01:54]} 16... Qe7 {[%clk
0:00:57.3]} 17. b4 {[%clk 0:01:32.5]} 17... a3 {[%clk 0:00:26.3]} 18. Bxa3
{[%clk 0:01:25.3]} 18... Na4 {[%clk 0:00:26.3]} 19. Qg3 {[%clk 0:01:25]} 19...
Bxc4 {[%clk 0:00:24.3]} 20. Rfe1 {[%clk 0:01:21]} 20... b5 {[%clk 0:00:21.8]}
21. Bc1 {[%clk 0:01:13.5]} 21... Nb6 {[%clk 0:00:19.1]} 22. g5 {[%clk 0:01:07]}
22... hxg5 {[%clk 0:00:14.9]} 23. Bxg5 {[%clk 0:01:07.9]} 23... Bf6 {[%clk
0:00:15.3]} 24. Nf5 {[%clk 0:01:05]} 24... Qe6 {[%clk 0:00:11.9]} 25. h4 {[%clk
0:00:40.7]} 25... Bxg5 {[%clk 0:00:11.9]} 26. Qxg5 {[%clk 0:00:41.2]} 26... Nd7
{[%clk 0:00:12.2]} 27. Bh3 {[%clk 0:00:39.4]} 27... Qf6 {[%clk 0:00:07.3]} 28.
Nh6+ {[%clk 0:00:37]} 28... Kg7 {[%clk 0:00:07.3]} 29. Bxd7 {[%clk 0:00:37.6]}
29... Qxg5+ {[%clk 0:00:07.5]} 30. hxg5 {[%clk 0:00:38.5]} 30... f5 {[%clk
0:00:08.1]} 31. exf5 {[%clk 0:00:37.5]} 1-0

[Event "*** Titled Tuesday Blitz"]
[Site "Chess.com"]
[Date "2021.02.02"]
[Round "4"]
[White "queen_iryna"]
[Black "TheCairnTerrier"]
[Result "1-0"]
[WhiteElo "2323"]
[BlackElo "2095"]
[TimeControl "180+1"]
[EndTime "10:41:19 PST"]
[Termination "queen_iryna won by checkmate"]

1. e4 {[%clk 0:03:00.9]} 1... c5 {[%clk 0:02:59.7]} 2. Nf3 {[%clk 0:03:00.1]}
2... e6 {[%clk 0:02:59.9]} 3. c4 {[%clk 0:02:59.2]} 3... Nc6 {[%clk 0:02:54.2]}
4. Nc3 {[%clk 0:02:59.1]} 4... Nf6 {[%clk 0:02:50.3]} 5. Be2 {[%clk 0:02:56.9]}
5... Be7 {[%clk 0:02:48.5]} 6. d4 {[%clk 0:02:56.1]} 6... cxd4 {[%clk 0:02:46]}
7. Nxd4 {[%clk 0:02:57]} 7... Bb4 {[%clk 0:02:44.9]} 8. O-O {[%clk 0:02:36.4]}
8... Bxc3 {[%clk 0:02:43]} 9. bxc3 {[%clk 0:02:37.3]} 9... Nxe4 {[%clk
0:02:42.3]} 10. Ba3 {[%clk 0:02:26]} 10... d6 {[%clk 0:02:37]} 11. Nxc6 {[%clk
0:02:04]} 11... bxc6 {[%clk 0:02:35.3]} 12. Bf3 {[%clk 0:02:04]} 12... d5 {[%clk
0:02:03.9]} 13. cxd5 {[%clk 0:01:50]} 13... cxd5 {[%clk 0:02:00.6]} 14. Bxe4
{[%clk 0:01:44.8]} 14... dxe4 {[%clk 0:02:00.3]} 15. Qa4+ {[%clk 0:01:44.6]}
15... Qd7 {[%clk 0:01:52.4]} 16. Qxe4 {[%clk 0:01:35]} 16... Bb7 {[%clk
0:01:52.8]} 17. Qg4 {[%clk 0:01:35.6]} 17... f5 {[%clk 0:01:38.5]} 18. Qg5
{[%clk 0:01:22.3]} 18... Kf7 {[%clk 0:01:26.6]} 19. Rad1 {[%clk 0:01:15.3]}
19... Qc6 {[%clk 0:01:26.4]} 20. Qe7+ {[%clk 0:00:53.9]} 20... Kg6 {[%clk
0:01:21.8]} 21. f3 {[%clk 0:00:41.8]} 21... Rhe8 {[%clk 0:00:58.4]} 22. Qh4
{[%clk 0:00:37.9]} 22... Rac8 {[%clk 0:00:27]} 23. Rd6 {[%clk 0:00:28.4]} 23...
Qc7 {[%clk 0:00:18]} 24. Rfd1 {[%clk 0:00:17.8]} 24... h6 {[%clk 0:00:18.1]} 25.
Rd7 {[%clk 0:00:14.3]} 25... Qb6+ {[%clk 0:00:18.4]} 26. Kh1 {[%clk 0:00:12.5]}
26... Rc7 {[%clk 0:00:18.3]} 27. Qg3+ {[%clk 0:00:12.4]} 27... Kh7 {[%clk
0:00:18.1]} 28. Qxg7# {[%clk 0:00:12.2]} 1-0

[Event "*** Titled Tuesday Blitz"]
[Site "Chess.com"]
[Date "2021.02.02"]
[Round "4"]
[White "Julianos82"]
[Black "medalja"]
[Result "0-1"]
[WhiteElo "2299"]
[BlackElo "2477"]
[TimeControl "180+1"]
[EndTime "10:41:21 PST"]
[Termination "medalja won by resignation"]

1. d4 {[%clk 0:03:00.9]} 1... Nf6 {[%clk 0:02:59.9]} 2. Nf3 {[%clk 0:03:00.3]}
2... e6 {[%clk 0:02:59.8]} 3. Bg5 {[%clk 0:02:59.7]} 3... c5 {[%clk 0:02:58.9]}
4. e3 {[%clk 0:02:59.2]} 4... Nc6 {[%clk 0:02:58.9]} 5. Nbd2 {[%clk 0:02:55.9]}
5... d5 {[%clk 0:02:58.8]} 6. c3 {[%clk 0:02:54.8]} 6... Be7 {[%clk 0:02:58.6]}
7. Bd3 {[%clk 0:02:54.7]} 7... h6 {[%clk 0:02:59.1]} 8. Bh4 {[%clk 0:02:47.1]}
8... b6 {[%clk 0:02:58.4]} 9. O-O {[%clk 0:02:43.2]} 9... Bb7 {[%clk 0:02:58.7]}
10. Ne5 {[%clk 0:02:28.2]} 10... Nxe5 {[%clk 0:02:57]} 11. dxe5 {[%clk
0:02:29.1]} 11... Nd7 {[%clk 0:02:57.1]} 12. Bg3 {[%clk 0:02:26]} 12... Qc7
{[%clk 0:02:46.7]} 13. Qh5 {[%clk 0:02:20]} 13... g6 {[%clk 0:02:42.2]} 14. Bxg6
{[%clk 0:02:18.1]} 14... fxg6 {[%clk 0:02:43.1]} 15. Qxg6+ {[%clk 0:02:18]}
15... Kd8 {[%clk 0:02:43.6]} 16. Qxe6 {[%clk 0:02:11.5]} 16... Qc6 {[%clk
0:02:43.9]} 17. Qh3 {[%clk 0:02:02.7]} 17... h5 {[%clk 0:02:39.7]} 18. Rad1
{[%clk 0:01:48.3]} 18... h4 {[%clk 0:02:39.3]} 19. Bf4 {[%clk 0:01:48.4]} 19...
Rg8 {[%clk 0:02:29.5]} 20. f3 {[%clk 0:01:45.6]} 20... Nf8 {[%clk 0:01:48.2]}
21. Ne4 {[%clk 0:01:22.1]} 21... Bc8 {[%clk 0:01:47.1]} 22. g4 {[%clk
0:01:13.1]} 22... hxg3 {[%clk 0:01:46.9]} 23. Qh5 {[%clk 0:00:59.4]} 23... gxh2+
{[%clk 0:01:46]} 24. Kh1 {[%clk 0:00:58.2]} 24... Ne6 {[%clk 0:01:22.8]} 25. c4
{[%clk 0:00:53.9]} 25... d4 {[%clk 0:01:19.5]} 26. Nd6 {[%clk 0:00:33.8]} 26...
Bxd6 {[%clk 0:01:07.8]} 27. exd6 {[%clk 0:00:34.7]} 27... Nxf4 {[%clk 0:01:08]}
28. Qf7 {[%clk 0:00:29.6]} 28... Be6 {[%clk 0:00:50.4]} 29. Qxf4 {[%clk
0:00:27.8]} 29... Kd7 {[%clk 0:00:46.5]} 30. exd4 {[%clk 0:00:26.5]} 30... cxd4
{[%clk 0:00:47]} 31. Qxd4 {[%clk 0:00:22.7]} 31... Raf8 {[%clk 0:00:46.3]} 32.
Qc3 {[%clk 0:00:14.5]} 32... Qxc4 {[%clk 0:00:39.9]} 0-1

[Event "*** Titled Tuesday Blitz"]
[Site "Chess.com"]
[Date "2021.02.02"]
[Round "4"]
[White "Lady_Nika"]
[Black "marvinguevara"]
[Result "1-0"]
[WhiteElo "2395"]
[BlackElo "2136"]
[TimeControl "180+1"]
[EndTime "10:41:23 PST"]
[Termination "Lady_Nika won on time"]

1. d4 {[%clk 0:02:57.6]} 1... f5 {[%clk 0:02:59]} 2. e3 {[%clk 0:02:54.6]} 2...
Nf6 {[%clk 0:02:57.2]} 3. f4 {[%clk 0:02:54.4]} 3... b6 {[%clk 0:02:54.7]} 4.
Nf3 {[%clk 0:02:54.1]} 4... Bb7 {[%clk 0:02:54.3]} 5. Bd3 {[%clk 0:02:53.3]}
5... g6 {[%clk 0:02:52.4]} 6. O-O {[%clk 0:02:52]} 6... Bg7 {[%clk 0:02:52.4]}
7. Nbd2 {[%clk 0:02:52]} 7... O-O {[%clk 0:02:50.4]} 8. Qe2 {[%clk 0:02:52.1]}
8... Ne4 {[%clk 0:02:35]} 9. c3 {[%clk 0:02:48.3]} 9... d6 {[%clk 0:02:30.7]}
10. Bxe4 {[%clk 0:02:46.8]} 10... fxe4 {[%clk 0:02:29.9]} 11. Ng5 {[%clk
0:02:47.1]} 11... d5 {[%clk 0:02:21.1]} 12. Ne6 {[%clk 0:02:46.3]} 12... Qc8
{[%clk 0:02:07.5]} 13. Nxf8 {[%clk 0:02:44.4]} 13... Ba6 {[%clk 0:01:58.9]} 14.
c4 {[%clk 0:02:41.7]} 14... Qxf8 {[%clk 0:01:50.8]} 15. b3 {[%clk 0:02:40.6]}
15... e6 {[%clk 0:01:44.3]} 16. Bb2 {[%clk 0:02:38]} 16... Nd7 {[%clk
0:01:39.2]} 17. a4 {[%clk 0:02:31.6]} 17... c5 {[%clk 0:01:36.3]} 18. Qg4 {[%clk
0:02:26.9]} 18... Qf7 {[%clk 0:01:29.1]} 19. a5 {[%clk 0:02:19.4]} 19... b5
{[%clk 0:01:09.5]} 20. cxd5 {[%clk 0:02:10.6]} 20... exd5 {[%clk 0:01:03.3]} 21.
Rfe1 {[%clk 0:02:09]} 21... c4 {[%clk 0:01:00.2]} 22. bxc4 {[%clk 0:02:06.9]}
22... dxc4 {[%clk 0:00:56.5]} 23. Bc3 {[%clk 0:02:03.9]} 23... Bb7 {[%clk
0:00:46.7]} 24. a6 {[%clk 0:02:01.1]} 24... Bd5 {[%clk 0:00:38.9]} 25. Rab1
{[%clk 0:02:00.4]} 25... Bc6 {[%clk 0:00:34.8]} 26. Nf1 {[%clk 0:01:51.5]} 26...
Nf6 {[%clk 0:00:32.7]} 27. Qh3 {[%clk 0:01:40.7]} 27... Nd5 {[%clk 0:00:21.7]}
28. Rec1 {[%clk 0:01:39.5]} 28... Bd7 {[%clk 0:00:20.1]} 29. Qh4 {[%clk
0:01:34.4]} 29... Qe6 {[%clk 0:00:17.5]} 30. Qe1 {[%clk 0:01:34.2]} 30... Qxa6
{[%clk 0:00:16.9]} 31. Nd2 {[%clk 0:01:32.6]} 31... Qe6 {[%clk 0:00:15.6]} 32.
Rb2 {[%clk 0:01:30]} 32... a5 {[%clk 0:00:15.4]} 33. Ra1 {[%clk 0:01:24.4]}
33... Nxc3 {[%clk 0:00:14.7]} 34. Nf1 {[%clk 0:01:11.7]} 34... b4 {[%clk
0:00:14.5]} 35. Rxb4 {[%clk 0:01:09.7]} 35... axb4 {[%clk 0:00:13.6]} 36. Rxa8+
{[%clk 0:01:08.8]} 36... Kf7 {[%clk 0:00:13.8]} 37. Nd2 {[%clk 0:01:05.4]} 37...
Bc6 {[%clk 0:00:11.8]} 38. Ra7+ {[%clk 0:01:05.3]} 38... Kg8 {[%clk 0:00:11.3]}
39. Qh4 {[%clk 0:01:03.9]} 39... Be8 {[%clk 0:00:03.9]} 40. Qd8 {[%clk
0:01:03.2]} 40... Kf8 {[%clk 0:00:02.8]} 41. Qc7 {[%clk 0:01:03.3]} 41... Qf6
{[%clk 0:00:01.5]} 42. Qc5+ {[%clk 0:01:03]} 42... Kg8 {[%clk 0:00:01.2]} 43.
Rxg7+ {[%clk 0:01:03.1]} 1-0

[Event "*** Titled Tuesday Blitz"]
[Site "Chess.com"]
[Date "2021.02.02"]
[Round "4"]
[White "NovikovaGalina"]
[Black "PattyCastillo"]
[Result "1/2-1/2"]
[WhiteElo "2261"]
[BlackElo "2044"]
[TimeControl "180+1"]
[EndTime "10:41:25 PST"]
[Termination "Game drawn by repetition"]

1. e4 {[%clk 0:03:00]} 1... c5 {[%clk 0:02:59.3]} 2. Nf3 {[%clk 0:03:00]} 2...
d6 {[%clk 0:02:43.3]} 3. d4 {[%clk 0:03:00]} 3... cxd4 {[%clk 0:02:43.2]} 4.
Nxd4 {[%clk 0:03:00.9]} 4... Nf6 {[%clk 0:02:43.7]} 5. Nc3 {[%clk 0:03:01.4]}
5... a6 {[%clk 0:02:43.9]} 6. h3 {[%clk 0:02:58.4]} 6... e6 {[%clk 0:02:43.4]}
7. g4 {[%clk 0:02:58.3]} 7... d5 {[%clk 0:02:35.9]} 8. Bg2 {[%clk 0:02:48.8]}
8... Bb4 {[%clk 0:02:31.7]} 9. exd5 {[%clk 0:02:44.5]} 9... Nxd5 {[%clk
0:02:31]} 10. Bd2 {[%clk 0:02:41.5]} 10... Bxc3 {[%clk 0:02:21.8]} 11. bxc3
{[%clk 0:02:42.4]} 11... O-O {[%clk 0:02:10.2]} 12. O-O {[%clk 0:02:42.1]} 12...
Qc7 {[%clk 0:02:04.7]} 13. Qf3 {[%clk 0:02:26]} 13... Bd7 {[%clk 0:01:51.7]} 14.
Qd3 {[%clk 0:02:12.3]} 14... Nc6 {[%clk 0:01:45]} 15. c4 {[%clk 0:02:11.3]}
15... Ne5 {[%clk 0:01:38.8]} 16. Qg3 {[%clk 0:02:00.8]} 16... Nxc4 {[%clk
0:01:23.7]} 17. Qxc7 {[%clk 0:02:01.7]} 17... Nxc7 {[%clk 0:01:22.2]} 18. Bg5
{[%clk 0:01:54.7]} 18... Nd5 {[%clk 0:01:18.6]} 19. Rab1 {[%clk 0:01:53.6]}
19... Rab8 {[%clk 0:01:16]} 20. Bh4 {[%clk 0:01:52.7]} 20... Nd2 {[%clk
0:01:14.6]} 21. Rfd1 {[%clk 0:01:52.6]} 21... Nxb1 {[%clk 0:01:14.2]} 22. Rxb1
{[%clk 0:01:53.5]} 22... Nf4 {[%clk 0:01:02.8]} 23. Bf1 {[%clk 0:01:51.4]} 23...
e5 {[%clk 0:00:59.2]} 24. Nf3 {[%clk 0:01:44.9]} 24... f6 {[%clk 0:00:57.3]} 25.
Bg3 {[%clk 0:01:45]} 25... Bc6 {[%clk 0:00:53.5]} 26. Nh4 {[%clk 0:01:45.4]}
26... Rbd8 {[%clk 0:00:38.6]} 27. Nf5 {[%clk 0:01:45.2]} 27... Rfe8 {[%clk
0:00:27.5]} 28. Bc4+ {[%clk 0:01:41.8]} 28... Kh8 {[%clk 0:00:26.2]} 29. Bf7
{[%clk 0:01:38.6]} 29... Rf8 {[%clk 0:00:21.9]} 30. Bb3 {[%clk 0:01:38.3]} 30...
Nxh3+ {[%clk 0:00:17.2]} 31. Kh2 {[%clk 0:01:38.7]} 31... Nf4 {[%clk 0:00:17.4]}
32. Ne7 {[%clk 0:01:31]} 32... Bf3 {[%clk 0:00:14.6]} 33. Nf5 {[%clk 0:01:13.8]}
33... g6 {[%clk 0:00:14.1]} 34. Ne3 {[%clk 0:01:13.1]} 34... Kg7 {[%clk
0:00:13.1]} 35. Bh4 {[%clk 0:01:09.2]} 35... g5 {[%clk 0:00:12.5]} 36. Bg3
{[%clk 0:01:09.1]} 36... Rd2 {[%clk 0:00:12.2]} 37. Nf5+ {[%clk 0:01:09.1]}
37... Kg6 {[%clk 0:00:12.2]} 38. Ne7+ {[%clk 0:01:08.5]} 38... Kg7 {[%clk
0:00:11.8]} 39. Nf5+ {[%clk 0:01:09.4]} 39... Kh8 {[%clk 0:00:11.9]} 40. Nh6
{[%clk 0:00:50.4]} 40... Kg7 {[%clk 0:00:10.2]} 41. Nf5+ {[%clk 0:00:50.6]}
1/2-1/2